Cogmind - Beta 13 @@@ ROGUE MODE // 2024.03.08 @ 05:33:20 Player: Carpathian Result: Self-destructed Performance ------------- Evolutions (1) 500 Regions Visited (3) 600 Robots Destroyed (9) 45 Value Destroyed (258) 258 Prototype IDs (0) 0 Alien Tech Used (0) 0 Bonus (0) 0 TOTAL SCORE: 1403 Bonus ------- None Cogmind --------- Core Integrity 387/400 Matter 272/300 Energy 125/125 System Corruption 0% Temperature Cool (0) Movement Walking (105) Location -9/Materials Parts ------- > --- POWER (1) -------- Light Ion Engine > --- PROPULSION (2) --- Aluminum Leg VSS Leg > --- UTILITY (4) ------ Improved Heat Sink Small Storage Unit Hardlight Generator > --- WEAPON (2) ------- Light Assault Rifle Flak Cannon > --- INVENTORY (8) ---- Light Ion Engine Light Treads Light Treads Rocket Launcher Mining Claw Peak State ------------ > --- POWER ------------ Light Nuclear Core > --- PROPULSION ------- Aluminum Leg VSS Leg > --- UTILITY ---------- Improved Heat Sink Small Storage Unit Hardlight Generator > --- WEAPON ----------- Light Assault Rifle Flak Cannon > --- INVENTORY -------- Light Ion Engine Light Treads Light Treads Mining Claw [Rating: 18] Favorites ----------- Power Light Nuclear Core Engine Ion Engine Power Core Light Nuclear Core Propulsion Aluminum Leg Leg Aluminum Leg Utility Small Storage Unit Device Improved Heat Sink Storage Small Storage Unit Weapon Light Assault Rifle Ballistic Gun Light Assault Rifle Ballistic Cannon Flak Cannon Build | -11 -10 -10 -9 ------- Run | Yrd Mat Min Mat Slots Evolved 2 | . . . 2 Power . | . . . . Propulsion . | . . . . Utility 2 | . . . 2 Weapon . | . . . . Parts Attached 14 | 6 . 6 2 Power 3 | 1 . 1 1 Engine 2 | 1 . . 1 Core 1 | . . 1 . Reactor . | . . . . Propulsion 4 | 2 . 2 . Treads . | . . . . Leg 4 | 2 . 2 . Wheel . | . . . . Hover . | . . . . Flight . | . . . . Utility 3 | 1 . 1 1 Device 2 | . . 1 1 Storage 1 | 1 . . . Processor . | . . . . Hackware . | . . . . Protection . | . . . . Artifact . | . . . . Weapon 4 | 2 . 2 . Energy Gun . | . . . . Energy Cannon . | . . . . Ballistic Gun 3 | 2 . 1 . Ballistic Cannon 1 | . . 1 . Launcher . | . . . . Special Weapon . | . . . . Impact Weapon . | . . . . Slashing Weapon . | . . . . Piercing Weapon . | . . . . Special Melee Weapon . | . . . . Unidentified Prototypes . | . . . . Parts Lost . | . . . . Power . | . . . . Propulsion . | . . . . Utility . | . . . . Weapon . | . . . . Highest Loss Streak . | . . . . To Critical Strikes . | . . . . Average Slot Usage (%) 90 | . 85 96 88 Engine 5 | . 14 3 3 Core 6 | . . 10 7 Leg 25 | . 28 28 22 Device 12 | . . 10 22 Storage 12 | . 14 14 11 Ballistic Gun 20 | . 28 25 11 Ballistic Cannon 5 | . . 2 11 Naked Turns . | . . . . Heaviest Build 23 | 13 13 18 23 Greatest Support 22 | 20 20 22 22 Greatest Overweight (x) 1 | . . . 1 Average Overweight (x) . | . . . . Largest Inventory Capacity 8 | 8 8 8 8 Average Capacity 7 | 6 8 8 8 Most Carried 8 | 4 5 8 7 Average Carried 4 | 2 4 4 4 Final Capacity 8 | 8 8 8 8 Final Carried 5 | 4 5 5 5 Class Distribution -------------------- 100% | Mutant Dominant Class ---------------- Mutant | -10/Materials Mutant | -10/Mines Mutant | -9/Materials Resources | -11 -10 -10 -9 ----------- Run | Yrd Mat Min Mat Matter Collected 463 | 231 29 53 150 Remotely . | . . . . Salvage Created 328 | . . 89 239 Parts 18 | . . 5 13 Haulers Intercepted 1 | . . . 1 Recyclers Shooed 1 | . . . 1 Parts Field Recycled . | . . . . Retrieved Matter . | . . . . Parts Self-Destructed . | . . . . Prevented . | . . . . Kills | -11 -10 -10 -9 ------- Run | Yrd Mat Min Mat Combat Hostiles Destroyed 6 | . . 2 4 Guns 2 | . . 2 . Cannons 4 | . . . 4 Classes Destroyed 5 | . . 1 4 Worker 1 | . . . 1 Hauler 1 | . . . 1 Watcher 1 | . . . 1 Grunt 4 | . . 2 2 Sentry 2 | . . . 2 Best Kill Streak 7 | . . 2 7 Combat Bots Only 4 | . . 2 4 Max Kills in Single Turn 1 | . . 1 1 Gunslinging . | . . . . Exploded . | . . . . Melee . | . . . . Uniques/NPCs Destroyed . | . . . . Combat | -11 -10 -10 -9 -------- Run | Yrd Mat Min Mat Hostile Shots Fired 49 | . . 25 24 Missed 5 | . . 1 4 Damage Taken 471 | . . 307 164 Core 52 | . . 39 13 Absorbed by Shields 80 | . . . 80 Core Remaining (%) 92 | 100 . 84 . Volleys Fired 25 | . . 12 13 Largest 2 | . . 2 2 Hottest 64 | . . 40 64 Shots Fired 50 | . . 24 26 Gun 37 | . . 24 13 Cannon 13 | . . . 13 Launcher . | . . . . Special . | . . . . Kinetic 50 | . . 24 26 Thermal . | . . . . Explosive . | . . . . Electromagnetic . | . . . . Robot Hit Streak 12 | . . 12 7 Robot Miss Streak 9 | . . 3 9 Penetration Max . | . . . . Secondary Targets 1 | . . 1 . Max Gunslinging Chain 1 | . . 1 . Shots Hit Robots 39 | . . 18 21 Core Hits 27 | . . 5 22 Critical Kills . | . . . . Critical Parts Destroyed . | . . . . Critical Strikes . | . . . . Melee Attacks . | . . . . Impact . | . . . . Slashing . | . . . . Piercing . | . . . . Sneak Attacks . | . . . . Combat Hostiles . | . . . . Follow-up Attacks . | . . . . Damage Inflicted 468 | . . 198 270 Guns 262 | . . 198 64 Cannons 206 | . . . 206 Explosions . | . . . . Melee . | . . . . Ramming . | . . . . Kinetic 468 | . . 198 270 Thermal . | . . . . Explosive . | . . . . Electromagnetic . | . . . . Impact . | . . . . Slashing . | . . . . Piercing . | . . . . Highest Corruption 4 | . 4 4 . Average Corruption 3 | . 3 4 . Corruption Purged . | . . . . Corruption Blocked . | . . . . Effects 7 | . 1 6 . Message Errors 2 | . . 2 . Matter Fused 2 | . . 2 . Energy Discharges 2 | . 1 1 . Data Loss (major) 1 | . . 1 . Overload Shots . | . . . . Overflow Damage . | . . . . Projectiles . | . . . . Explosions . | . . . . Melee . | . . . . Knockbacks 5 | . . . 5 Impact . | . . . . Kinetic 5 | . . . 5 Secondary . | . . . . Self-Inflicted Damage . | . . . . Shots . | . . . . Rammed . | . . . . Targets Rammed . | . . . . Kicked . | . . . . Crushed . | . . . . Highest Temperature 59 | . . 59 6 Average Temperature 24 | . . 27 3 Received Heat Transfer 230 | . . 189 41 Siege Activations . | . . . . Robots Corrupted . | . . . . Combat Hostiles . | . . . . Parts Fried . | . . . . Impact Corruptions . | . . . . Robots Melted . | . . . . Combat Hostiles . | . . . . Parts Melted . | . . . . Heat Transferred . | . . . . Parts Sabotaged . | . . . . Parts Stolen . | . . . . Parts Stripped . | . . . . Power Chain Reactions . | . . . . Alert | -11 -10 -10 -9 ------- Run | Yrd Mat Min Mat Peak Influence 200 | . 2 50 200 Initial 19 | . . . 19 Average 50 | . . 44 107 Maximum Alert Level 1 | . . . 1 Low Security (%) 97 | 100 100 100 93 Level 1 2 | . . . 6 Level 2 . | . . . . Level 3 . | . . . . Level 4 . | . . . . Level 5 . | . . . . High Security . | . . . . Max Security . | . . . . Squads Dispatched 1 | . . . 1 Investigation . | . . . . Extermination . | . . . . Reinforcement 1 | . . . 1 Assault . | . . . . Garrison . | . . . . Intercept . | . . . . Searches Triggered . | . . . . Construction Impeded . | . . . . Haulers Reinforced . | . . . . Active Scanning Responses . | . . . . Cargo Convoy Interrupts . | . . . . Stealth | -11 -10 -10 -9 --------- Run | Yrd Mat Min Mat Distress Signals 5 | . . . 5 Communications Jammed . | . . . . Distress Signals . | . . . . Times Spotted 16 | . . 2 14 Peak Tracking Total 7 | . . 2 7 Tactical Retreats . | . . . . Traps | -11 -10 -10 -9 ------- Run | Yrd Mat Min Mat Traps Triggered 3 | . 2 . 1 Indirectly . | . . . . Trap Hack Attempts . | . . . . Triggered . | . . . . Disarmed . | . . . . Reprogrammed . | . . . . Reused . | . . . . Traps Extracted . | . . . . Installed . | . . . . Triggered . | . . . . Machines | -11 -10 -10 -9 ---------- Run | Yrd Mat Min Mat Machines Disabled . | . . . . Max in Single Turn . | . . . . Machines Repaired . | . . . . Machines Dismantled . | . . . . Machines Sabotaged . | . . . . Overloaded Fab Kills . | . . . . Hacking | -11 -10 -10 -9 --------- Run | Yrd Mat Min Mat Machines Accessed 3 | . 1 1 1 Terminals 2 | . 1 . 1 Fabricators . | . . . . Repair Stations . | . . . . Recycling Units . | . . . . Scanalyzers . | . . . . Garrison Access . | . . . . Total Hacks 5 | . 2 1 2 Successful 3 | . 1 1 1 Failed 2 | . 1 . 1 Catastrophic . | . . . . Database Lockouts . | . . . . Manual . | . . . . Terminals 4 | . 2 . 2 Fabricators . | . . . . Repair Stations . | . . . . Recycling Units . | . . . . Scanalyzers . | . . . . Garrison Access . | . . . . Terminal Hacks 3 | . 1 1 1 Record 1 | . 1 . . Open Door 1 | . . 1 . Branch Access Points 1 | . . . 1 Fabricator Hacks . | . . . . Repair Station Hacks . | . . . . Recycling Unit Hacks . | . . . . Scanalyzer . | . . . . Garrison Access Hacks . | . . . . Unauthorized Hacks . | . . . . Terminals . | . . . . Fabricators . | . . . . Repair Stations . | . . . . Recycling Units . | . . . . Scanalyzers . | . . . . Garrison Access . | . . . . Data Cores Recovered . | . . . . Used . | . . . . Hacking Detections 1 | . . . 1 Full Trace Events . | . . . . Feedback Events . | . . . . Feedback Blocked . | . . . . Robot Schematics Acquired . | . . . . Robots Built . | . . . . Authchips . | . . . . Time . | . . . . Total Robot Build Rating . | . . . . Part Schematics Acquired . | . . . . Parts Built . | . . . . Authchips . | . . . . Time . | . . . . Total Part Build Rating . | . . . . Parts Repaired . | . . . . Time . | . . . . Parts Recycled . | . . . . Recycled Matter . | . . . . Retrieved Matter . | . . . . Retrieved Components . | . . . . Parts Scanalyzed . | . . . . Part Schematics Acquired . | . . . . Parts Damaged . | . . . . Bothacking | -11 -10 -10 -9 ------------ Run | Yrd Mat Min Mat Used RIF Installer . | . . . . Robots Hacked . | . . . . Non-combat . | . . . . Combat . | . . . . Robot Hacks Applied . | . . . . Relay Couplers Released . | . . . . Fabnet Peak Effective % . | . . . . Robots Rewired . | . . . . Allies Hacked . | . . . . Hacks Repelled . | . . . . Allies | -11 -10 -10 -9 -------- Run | Yrd Mat Min Mat Total Allies . | . . . . Largest Group . | . . . . Highest-Rated Group . | . . . . Highest-Rated Ally . | . . . . Total Orders . | . . . . Ally Attacks . | . . . . Total Damage . | . . . . Kills . | . . . . Allies Corrupted . | . . . . Allies Melted . | . . . . Intel | -11 -10 -10 -9 ------- Run | Yrd Mat Min Mat Robot Analysis Total . | . . . . Derelict Logs Recovered 1 | . . 1 . Drone Launches . | . . . . Drone Recoveries . | . . . . Exploration | -11 -10 -10 -9 ------------- Run | Yrd Mat Min Mat Turns Passed 630 | 74 142 204 210 Spaces Moved 384 | 57 118 122 87 Core 14 | 14 . . . Treads . | . . . . Legs 370 | 43 118 122 87 Wheels . | . . . . Hover . | . . . . Flight . | . . . . Fastest Speed 50 | 50 120 105 105 Average Speed 125 | 102 120 116 159 Slowest Speed 185 | 120 120 120 185 Overloaded Moves . | . . . . Propulsion Burnouts . | . . . . Robots Hopped . | . . . . Cave-ins Triggered . | . . . . Exploration Rate (%) 20 | 4 25 41 12 Regions Visited 3 Branch Regions 1 Pre-discovered Areas . | . . . . Known Exits Taken . | . . . . Unknown Exits Taken 3 | 1 1 1 . Scrap Searched . | . . . . Spaces Dug . | . . . . Terrain Destroyed . | . . . . Melee . | . . . . Projectile . | . . . . AOE . | . . . . Terrain Rammed . | . . . . Walls Destroyed . | . . . . Machines Disabled . | . . . . Actions | -11 -10 -10 -9 --------- Run | Yrd Mat Min Mat Total 488 | 72 118 163 135 Wait 39 | . . 11 28 Move 381 | 56 117 121 87 Hop . | . . . . Pick Up 21 | 10 1 7 3 Fast Attach . | . . . . Attach 8 | 6 . 1 1 Detach . | . . . . Swap 6 | . . 5 1 Drop 8 | . . 6 2 Fire 25 | . . 12 13 Melee . | . . . . Ram . | . . . . Kick . | . . . . Crush . | . . . . Escape Stasis . | . . . . Rewire . | . . . . Trap . | . . . . Miscellaneous . | . . . . Route ------- -11/Scrapyard -10/Materials -10/Mines -9/Materials (discovered 2 exits: Min x2) History --------- Turn | Location | Event 6 | -11/Scrapyard | Discovered new exit (range 14) 75 | -11/Scrapyard | Entered Materials 181 | -10/Materials | Discovered new exit (range 11) 217 | -10/Materials | Entered Mines 309 | -10/Mines | Build established: Mutant 314 | -10/Mines | Learned 4 Materials zone layouts 373 | -10/Mines | Met a Derelict who couldn't figure out how to use a Trap Extractor 404 | -10/Mines | Discovered new exit (range 13) 421 | -10/Mines | Entered Materials 421 | -9/Materials | Evolved 2 slots: Utility x2 599 | -9/Materials | Identified exit to Mines 631 | -9/Materials | Self-destructed Last Messages --------------- 00550_ S-10 Pest destroyed. 00551_ S-10 Pest knocked back. 00562_ S-10 Pest destroyed. 00564_ Acquired 3 matter. 00570_ Acquired Lgt. Ion Engine. 00571_ Dropped Corrupted Lgt. Ion Engine. 00573_ Dropped Lgt. Nuclear Core. 00574_ K-01 Serf collects debris. 00583_ R-06 Scavenger collects Lgt. Armor Plating. 00585_ K-01 Serf collects debris. 00599_ Connecting with Terminal... 00599_ Current location identified: Materials >>Access(Branch) Found 2 branch access points: (86,15) Mines (13,10) Mines Map updated. 00626_ W-16 Scout sends out distress signal. 00630_ S-10 Pest destroyed. Map ----- +----------------------------------------------------+ | ??# """ # ##### ##### # """" #??????????? | | ??# """ # #???# #???# # """" #??????????? | | ??# # ##??# #???# # #??????????? | | ???????????+ T???# #???????+???????????????????? | | ???????????# #???# #???????????????????????????? | | ???????????# #####+#####???????????????????????? | | ??????????## ## "" #???????????????????????? | | ########### # ""S #???????????????????????? | | # "" #???????????????????????? | | + #???????????????????????? | | # #???????????????????????? | | ??######### # [ +???????????????????????? | | ??????????## #### #???????????????????????? | | ???????????# #??# ![ #???????????????????????? | | ???????????# #??# ![ #???????????????????????? | | ???######### #############???????????????????????? | | ???+ ## #???????????????????????????? | | ????##### ## #???????????????????????????? | | ????????# ## "" #???????????????????????????? | | ????????# ## T" #???????????????????????????? | | ???????## = # "" #?????????????#?????????????? | | ???????##[! [##] #??????????? #?????????????? | | ???????##[! #####+###????????? #?????????????? | | ???????##%!= #?# ######??t #?????????????? | | ##[=%=### # #?????????????? | | %[%!%g![ = @/ #?????????????? | | #####+### ** # #?????????????? | | ## ???? ?# ==g ######?? #?????????????? | | ?####???? ?###%###?????????#####?????????????? | | ????????# ??# #?????????????????????????????? | | ????????# ??# #?????????????????????????????? | | ????????########?# #?????????????????????????????? | | ?????????????????# #?????????????????????????????? | | ?????????????????# #?????????????????????????????? | | ?????????????????# #?????????????????????????????? | | ????????????????? ??????????????????????????????? | | ????????????????? ??????????????????????????????? | | ????????????????? ??????????????????????????????? | | ????????????????? ??????????????????????????????? | | ????????????????? ??????????????????????????????? | | ?????????????????? ??????????????????????????????? | | ?????????????????? ??????????????????????????????? | | ?????????????????????????????????????????????????? | | ?????????????????????????????????????????????????? | | ?????????????????????????????????????????????????? | | ?????????????????????????????????????????????????? | | ?????????????????????????????????????????????????? | | ?????????????????????????????????????????????????? | | ?????????????????????????????????????????????????? | | ?????????????????????????????????????????????????? | +----------------------------------------------------+ Best States ------------- Heat Dissipation 42 Energy Generation 14 Energy Capacity 250 Matter Stores 300 Matter Capacity 300 Sight Range 16 Terrain Scan Density 10 Evasion (%) 55 Item Schematics ----------------- None Robot Schematics ------------------ None Fabricated ------------ Nothing Alien Tech Used ----------------- None Achievements -------------- None Challenges ------------ None Game ------ Seed AssaultHardenedWeb Manual? 0 Play Time 00:07:42 Cumulative 14.6 hours Start 2024.03.08 @ 05:26:57 End 2024.03.08 @ 05:33:20 Sessions 1 Manual Loads 0 Difficulty Rogue Special Mode None Game No. 76 Rogue 76 Adventurer 0 Explorer 0 Win Type - Total 0 Types 0/0/0/0/0/0/0/0/0 Lore% 6 Gallery% 21 Achievement% 15 Wizard Run 0 Options --------- Layout 1 ASCII 0 Keyboard 0 Movement Arrows Keybinds 0 Fullscreen 1 Font 32/Cog Map View 50x35 Zoom Use 0% Tactical HUD 1 Map Filters NONE Filters NONE Steam 1 RUN: 19a03381-240a-4e1f-bac6-743fd4896458